Cogmind - Beta 10.2 @@@ ROGUE MODE // 2021.10.20 @ 21:53:47 Player: TheGreatBorealis Result: Destroyed by H-66 Slayer with Gauss Rifle Performance ------------- Evolutions (4) 2000 Regions Visited (7) 1400 Robots Destroyed (63) 315 Value Destroyed (1846) 1846 Prototype IDs (1) 20 Alien Tech Used (0) 0 Bonus (0) 0 TOTAL SCORE: 5581 Bonus ------- None Cogmind --------- Core Integrity 0/850 Matter 205/300 Energy 99/100 System Corruption 0% Temperature Cool (0) Movement Core (50) Location -6/Factory Parts ------- > --- POWER (1) -------- (None) > --- PROPULSION (4) --- (None) > --- UTILITY (8) ------ (None) > --- WEAPON (2) ------- (None) > --- INVENTORY (4) ---- (None) Peak State ------------ > --- POWER ------------ Improved Ion Engine > --- PROPULSION ------- Light Treads Light Treads Light Treads Light Treads > --- UTILITY ---------- Medium Storage Unit Sensor Array Advanced Signal Interpreter Advanced Targeting Computer Hardened Heavy Armor Plating > --- WEAPON ----------- Flak Cannon Gauss Cannon > --- INVENTORY -------- Improved Ion Engine Light Treads Hardened Heavy Armor Plating Improved Field Recycling Unit Minigun Flak Cannon Improved Grenade Launcher [Rating: 31] Favorites ----------- Power Improved Ion Engine Engine Improved Ion Engine Propulsion Light Treads Treads Light Treads Leg Aluminum Leg Wheel Wheel Utility Medium Armor Plating Device Sensor Array Storage Medium Storage Unit Processor Advanced Signal Interpreter Hackware Hacking Suite Protection Medium Armor Plating Weapon Minigun Energy Gun EM Pulse Gun Ballistic Gun Minigun Ballistic Cannon Flak Cannon Launcher Improved Grenade Launcher Impact Weapon Heavy Flail Build | -11 -10 -10 -9 -9 -8 -7 -6 ------- Run | Scr Mat Min Mat Sto Mat Fac Fac Slots Evolved 8 | . . . 2 . 2 2 2 Power . | . . . . . . . . Propulsion 2 | . . . 2 . . . . Utility 6 | . . . . . 2 2 2 Weapon . | . . . . . . . . Parts Attached 72 | . 2 2 18 17 6 15 12 Power 7 | . . . 2 3 . 1 1 Engine 7 | . . . 2 3 . 1 1 Core . | . . . . . . . . Reactor . | . . . . . . . . Propulsion 21 | . . . 5 9 2 4 1 Treads 16 | . . . 3 7 2 4 . Leg 4 | . . . 2 2 . . . Wheel 1 | . . . . . . . 1 Hover . | . . . . . . . . Flight . | . . . . . . . . Utility 25 | . 1 . 3 4 4 5 8 Device 9 | . 1 . 1 . 1 1 5 Storage 2 | . . . . 1 1 . . Processor 3 | . . . . . 1 1 1 Hackware 1 | . . . . . . . 1 Protection 10 | . . . 2 3 1 3 1 Artifact . | . . . . . . . . Weapon 19 | . 1 2 8 1 . 5 2 Energy Gun 4 | . 1 . 2 . . . 1 Energy Cannon . | . . . . . . . . Ballistic Gun 7 | . . 1 5 1 . . . Ballistic Cannon 5 | . . . 1 . . 3 1 Launcher 2 | . . 1 . . . 1 . Special Weapon . | . . . . . . . . Impact Weapon 1 | . . . . . . 1 . Slashing Weapon . | . . . . . . . . Piercing Weapon . | . . . . . . . . Special Melee Weapon . | . . . . . . . . Unidentified Prototypes 1 | . . . 1 . . . . Parts Lost 41 | . . 7 4 4 . 11 15 Power 5 | . . 1 1 . . 2 1 Propulsion 11 | . . 2 1 2 . 5 1 Utility 15 | . . . 1 1 . 3 10 Weapon 10 | . . 4 1 1 . 1 3 Highest Loss Streak 7 | . . 7 2 1 . 6 7 Average Slot Usage (%) 82 | . 92 75 70 98 97 84 17 Engine 8 | . 14 10 10 11 9 6 . Treads 25 | . . . 24 38 36 23 . Leg 3 | . 28 21 4 3 . . . Device 5 | . 7 11 6 . 7 6 1 Storage 6 | . 14 11 . 9 10 6 . Processor 5 | . . . . . 6 13 8 Protection 8 | . . . 6 11 9 8 1 Energy Gun 2 | . 20 18 2 . . . . Ballistic Gun 11 | . 7 1 14 22 18 2 . Ballistic Cannon 3 | . . . . . . 10 . Naked Turns 114 | . . 50 6 . . . 58 Heaviest Build 49 | 13 14 14 21 27 37 49 10 Greatest Support 80 | 20 20 20 60 80 80 80 10 Greatest Overweight (x) 7 | . . 1 . . . 7 3 Average Overweight (x) . | . . . . . . . . Largest Inventory Capacity 10 | . 6 6 4 6 10 8 4 Average Capacity 6 | . 6 5 4 5 8 7 4 Most Carried 9 | . 6 6 4 6 9 8 4 Average Carried 5 | . 5 5 3 5 7 7 1 Final Capacity 8 | 6 6 4 4 6 8 4 4 Final Carried 8 | 6 6 4 4 6 8 4 . Class Distribution -------------------- 67% | Scavenger-Mutant 32% | Mutant Dominant Class ---------------- Mutant | -10/Materials Mutant | -10/Mines Scavenger-Mutant | -9/Materials Scavenger-Mutant | -9/Storage Scavenger-Mutant | -8/Materials Scavenger-Mutant | -7/Factory Mutant | -6/Factory Resources | -11 -10 -10 -9 -9 -8 -7 -6 ----------- Run | Scr Mat Min Mat Sto Mat Fac Fac Matter Collected 2331 | 200 29 39 404 810 227 478 144 Remotely . | . . . . . . . . Salvage Created 2503 | . 96 76 506 1107 275 443 . Parts 143 | . 4 7 23 70 11 28 . Haulers Intercepted 4 | . . . 1 1 1 1 . Recyclers Shooed . | . . . . . . . . Parts Field Recycled . | . . . . . . . . Retrieved Matter . | . . . . . . . . Parts Self-Destructed . | . . . . . . . . Prevented . | . . . . . . . . Kills | -11 -10 -10 -9 -9 -8 -7 -6 ------- Run | Scr Mat Min Mat Sto Mat Fac Fac Combat Hostiles Destroyed 50 | . 2 7 8 19 2 12 . Melee 1 | . . . . . . 1 . Guns 40 | . 2 5 8 19 2 4 . Cannons 7 | . . . . . . 7 . AOE 2 | . . 2 . . . . . Classes Destroyed 11 | . 1 2 3 1 . 4 . Worker 1 | . . . . . . 1 . Builder 1 | . . . . . . 1 . Hauler 4 | . . . 1 1 1 1 . Recycler 7 | . . . 2 4 1 . . Watcher 4 | . . . . 1 2 1 . Swarmer 13 | . . 3 3 4 . 3 . Grunt 16 | . 2 . 3 9 1 1 . Sentry 12 | . . . 2 6 1 3 . Hunter 1 | . . . . . . 1 . Programmer 4 | . . . . . . 4 . Assembled 4 | . . 4 . . . . . Best Kill Streak 4 | . 2 4 3 4 1 3 . Combat Bots Only 4 | . 2 4 3 4 1 3 . Max Kills in Single Turn 2 | . 1 2 1 1 1 2 . Gunslinging 1 | . . 1 . . . . . Exploded 1 | . . 1 . . . . . Melee 1 | . . . . . . 1 . Uniques/NPCs Destroyed . | . . . . . . . . Combat | -11 -10 -10 -9 -9 -8 -7 -6 -------- Run | Scr Mat Min Mat Sto Mat Fac Fac Damage Taken 6512 | . 95 606 647 966 152 2504 1542 Core 1785 | . 33 158 90 75 13 558 858 Absorbed by Shields . | . . . . . . . . Core Remaining (%) 59 | 100 . 23 . 58 97 20 . Volleys Fired 231 | . 3 13 55 79 20 58 3 Largest 2 | . 2 2 2 2 2 2 1 Hottest 92 | . 60 80 79 50 50 92 80 Shots Fired 414 | . 6 18 86 158 39 104 3 Gun 334 | . 6 16 86 158 39 26 3 Cannon 76 | . . . . . . 76 . Launcher 4 | . . 2 . . . 2 . Special . | . . . . . . . . Kinetic 376 | . 3 8 66 158 39 102 . Thermal 23 | . . . 20 . . . 3 Explosive 4 | . . 2 . . . 2 . Electromagnetic 11 | . 3 8 . . . . . Robot Hit Streak 24 | . 5 7 7 24 14 22 . Robot Miss Streak 6 | . . 2 4 3 4 6 . Penetration Max . | . . . . . . . . Secondary Targets 4 | . . 2 2 . . . . Max Gunslinging Chain 1 | . . 1 1 . . . . Shots Hit Robots 303 | . 5 12 59 110 27 90 . Core Hits 136 | . 4 12 17 34 10 55 4 Critical Hits 3 | . . . . 2 . 1 . Critical Kills 1 | . . . . 1 . . . Critical Parts Destroyed 2 | . . . . 1 . 1 . Melee Attacks 14 | . . . . . . 14 . Impact 14 | . . . . . . 14 . Slashing . | . . . . . . . . Piercing . | . . . . . . . . Sneak Attacks . | . . . . . . . . Combat Hostiles . | . . . . . . . . Follow-up Attacks . | . . . . . . . . Damage Inflicted 5420 | . 63 308 849 1732 457 1972 39 Guns 3684 | . 63 161 849 1732 457 422 . Cannons 1067 | . . . . . . 1067 . Explosions 426 | . . 144 . . . 282 . Melee 201 | . . . . . . 201 . Ramming 42 | . . 3 . . . . 39 Kinetic 4431 | . 25 95 633 1732 457 1489 . Thermal 216 | . . . 216 . . . . Explosive 426 | . . 144 . . . 282 . Electromagnetic 104 | . 38 66 . . . . . Impact 201 | . . . . . . 201 . Slashing . | . . . . . . . . Piercing . | . . . . . . . . Highest Corruption 4 | . . 3 . . 3 4 . Average Corruption 2 | . . 3 . . 2 2 . Corruption Purged . | . . . . . . . . Effects 20 | . . 1 . . 5 14 . Message Errors 5 | . . 1 . . 2 2 . Matter Fused 4 | . . . . . 1 3 . Heat Flow Errors 4 | . . . . . . 4 . Parts Rejected 1 | . . . . . . 1 . Data Loss (minor) 2 | . . . . . . 2 . Targeting Errors 2 | . . . . . 1 1 . Weapon Failures 2 | . . . . . 1 1 . Overload Shots . | . . . . . . . . Overflow Damage 4 | . . . . . . 4 . Projectiles 3 | . . . . . . 3 . Explosions 1 | . . . . . . 1 . Melee . | . . . . . . . . Knockbacks 25 | . . . . . . 25 . Impact . | . . . . . . . . Kinetic 24 | . . . . . . 24 . Secondary 1 | . . . . . . 1 . Self-Inflicted Damage 48 | . . 31 . . . . 17 Shots 1 | . . 1 . . . . . Rammed 10 | . . 2 . . . . 8 Targets Rammed 10 | . . 2 . . . . 8 Kicked . | . . . . . . . . Crushed . | . . . . . . . . Highest Temperature 239 | . 24 . 185 85 32 239 18 Average Temperature 46 | . 17 . 53 22 11 65 10 Received Heat Transfer 1644 | . 54 78 243 288 72 672 237 Siege Activations . | . . . . . . . . Robots Corrupted . | . . . . . . . . Combat Hostiles . | . . . . . . . . Parts Fried . | . . . . . . . . Impact Corruptions . | . . . . . . . . Robots Melted . | . . . . . . . . Combat Hostiles . | . . . . . . . . Parts Melted . | . . . . . . . . Heat Transferred 555 | . . . 555 . . . . Parts Sabotaged . | . . . . . . . . Parts Stolen . | . . . . . . . . Parts Stripped . | . . . . . . . . Power Chain Reactions . | . . . . . . . . Missiles Intercepted . | . . . . . . . . Alert | -11 -10 -10 -9 -9 -8 -7 -6 ------- Run | Scr Mat Min Mat Sto Mat Fac Fac Peak Influence 319 | . 110 112 116 319 138 221 183 Initial 63 | . . 42 16 25 42 18 63 Average 93 | . 57 88 51 151 72 75 87 Maximum Alert Level 1 | . . . . 1 . 1 . Low Security (%) 92 | . 100 100 100 74 100 98 100 Level 1 7 | . . . . 25 . 1 . Level 2 . | . . . . . . . . Level 3 . | . . . . . . . . Level 4 . | . . . . . . . . Level 5 . | . . . . . . . . High Security . | . . . . . . . . Max Security . | . . . . . . . . Squads Dispatched 12 | . 1 . 1 4 . 5 1 Investigation 2 | . . . 1 1 . . . Extermination 4 | . . . . . . 4 . Reinforcement 6 | . 1 . . 3 . 1 1 Assault . | . . . . . . . . Garrison . | . . . . . . . . Intercept . | . . . . . . . . Construction Impeded . | . . . . . . . . Haulers Reinforced . | . . . . . . . . Stealth | -11 -10 -10 -9 -9 -8 -7 -6 --------- Run | Scr Mat Min Mat Sto Mat Fac Fac Distress Signals 11 | . . 1 2 4 2 1 1 Communications Jammed . | . . . . . . . . Distress Signals . | . . . . . . . . Times Spotted 133 | . 8 24 12 29 8 33 19 Peak Tracking Total 10 | . 3 10 3 4 4 5 9 Tactical Retreats 15 | . 1 2 . 4 . 2 6 Traps | -11 -10 -10 -9 -9 -8 -7 -6 ------- Run | Scr Mat Min Mat Sto Mat Fac Fac Traps Triggered 5 | . . . 1 . 2 1 1 Indirectly . | . . . . . . . . Trap Hack Attempts . | . . . . . . . . Triggered . | . . . . . . . . Disarmed 1 | . . . 1 . . . . Reprogrammed . | . . . . . . . . Reused . | . . . . . . . . Traps Extracted . | . . . . . . . . Installed . | . . . . . . . . Triggered . | . . . . . . . . Machines | -11 -10 -10 -9 -9 -8 -7 -6 ---------- Run | Scr Mat Min Mat Sto Mat Fac Fac Machines Disabled 6 | . . . . 2 3 1 . Max in Single Turn 1 | . . . . 1 1 1 . Garrison Access 1 | . . . . 1 . . . Machines Sabotaged . | . . . . . . . . Garrisons Compromised . | . . . . . . . . Overloaded Fab Kills . | . . . . . . . . Fab Network Shutdowns . | . . . . . . . . Hacking | -11 -10 -10 -9 -9 -8 -7 -6 --------- Run | Scr Mat Min Mat Sto Mat Fac Fac Machines Accessed 8 | . . . 2 4 . 2 . Terminals 6 | . . . 2 3 . 1 . Fabricators . | . . . . . . . . Repair Stations . | . . . . . . . . Recycling Units 1 | . . . . . . 1 . Scanalyzers . | . . . . . . . . Garrison Access 1 | . . . . 1 . . . Total Hacks 18 | . . . 7 9 . 2 . Successful 7 | . . . 2 4 . 1 . Failed 11 | . . . 5 5 . 1 . Catastrophic 4 | . . . 3 . . 1 . Database Lockouts . | . . . . . . . . Manual 2 | . . . 2 . . . . Terminals 16 | . . . 7 8 . 1 . Fabricators . | . . . . . . . . Repair Stations . | . . . . . . . . Recycling Units 1 | . . . . . . 1 . Scanalyzers . | . . . . . . . . Garrison Access 1 | . . . . 1 . . . Terminal Hacks 6 | . . . 2 3 . 1 . Part Schematic 1 | . . . . . . 1 . Open Door 1 | . . . . 1 . . . Unreport Threat 2 | . . . 1 1 . . . Locate Traps 1 | . . . . 1 . . . Disarm Traps 1 | . . . 1 . . . . Fabricator Hacks . | . . . . . . . . Repair Station Hacks . | . . . . . . . . Recycling Unit Hacks . | . . . . . . . . Scanalyzer . | . . . . . . . . Garrison Access Hacks 1 | . . . . 1 . . . Seal Access 1 | . . . . 1 . . . Unauthorized Hacks . | . . . . . . . . Terminals . | . . . . . . . . Fabricators . | . . . . . . . . Repair Stations . | . . . . . . . . Recycling Units . | . . . . . . . . Scanalyzers . | . . . . . . . . Garrison Access . | . . . . . . . . Data Cores Recovered . | . . . . . . . . Used . | . . . . . . . . Hacking Detections 7 | . . . 2 3 . 2 . Full Trace Events 1 | . . . . 1 . . . Feedback Events . | . . . . . . . . Feedback Blocked . | . . . . . . . . Robot Schematics Acquired . | . . . . . . . . Robots Built . | . . . . . . . . Matter . | . . . . . . . . Time . | . . . . . . . . Total Robot Build Rating . | . . . . . . . . Part Schematics Acquired 1 | . . . . . . 1 . Parts Built . | . . . . . . . . Matter . | . . . . . . . . Time . | . . . . . . . . Total Part Build Rating . | . . . . . . . . Parts Repaired . | . . . . . . . . Time . | . . . . . . . . Parts Recycled . | . . . . . . . . Recycled Matter . | . . . . . . . . Retrieved Matter . | . . . . . . . . Retrieved Components . | . . . . . . . . Parts Scanalyzed . | . . . . . . . . Part Schematics Acquired . | . . . . . . . . Parts Damaged . | . . . . . . . . Bothacking | -11 -10 -10 -9 -9 -8 -7 -6 ------------ Run | Scr Mat Min Mat Sto Mat Fac Fac Used RIF Installer . | . . . . . . . . Robots Hacked . | . . . . . . . . Non-combat . | . . . . . . . . Combat . | . . . . . . . . Robot Hacks Applied . | . . . . . . . . Relay Couplers Released . | . . . . . . . . Robots Rewired . | . . . . . . . . Allies Hacked . | . . . . . . . . Hacks Repelled . | . . . . . . . . Allies | -11 -10 -10 -9 -9 -8 -7 -6 -------- Run | Scr Mat Min Mat Sto Mat Fac Fac Total Allies . | . . . . . . . . Largest Group . | . . . . . . . . Highest-Rated Group . | . . . . . . . . Highest-Rated Ally . | . . . . . . . . Total Orders . | . . . . . . . . Ally Attacks . | . . . . . . . . Total Damage . | . . . . . . . . Kills . | . . . . . . . . Allies Corrupted . | . . . . . . . . Allies Melted . | . . . . . . . . Intel | -11 -10 -10 -9 -9 -8 -7 -6 ------- Run | Scr Mat Min Mat Sto Mat Fac Fac Robot Analysis Total . | . . . . . . . . Derelict Logs Recovered 1 | . . 1 . . . . . Drone Launches 2 | . . . . . . . 2 Drone Recoveries 2 | . . . . . . . 2 Exploration | -11 -10 -10 -9 -9 -8 -7 -6 ------------- Run | Scr Mat Min Mat Sto Mat Fac Fac Turns Passed 4814 | . 194 263 680 1336 474 1505 362 Spaces Moved 2706 | 1 125 242 328 604 225 635 546 Core 593 | . . 112 14 . . 22 445 Treads 1671 | . . . 229 604 225 613 . Legs 341 | 1 125 130 85 . . . . Wheels 101 | . . . . . . . 101 Hover . | . . . . . . . . Flight . | . . . . . . . . Fastest Speed 50 | 120 120 50 50 160 160 50 50 Average Speed 131 | 120 120 90 144 160 160 165 59 Slowest Speed 400 | 120 120 120 160 160 160 400 200 Overloaded Moves . | . . . . . . . . Propulsion Burnouts . | . . . . . . . . Robots Hopped . | . . . . . . . . Cave-ins Triggered . | . . . . . . . . Exploration Rate (%) 28 | 2 29 34 27 75 21 22 16 Regions Visited 7 Branch Regions 2 Pre-discovered Areas 2 | . . 2 . . . . . Known Exits Taken 2 | . . . . . 1 1 . Unknown Exits Taken 5 | 1 1 1 1 1 . . . Scrap Searched 1 | . . 1 . . . . . Spaces Dug 9 | . . . . . . 9 . Terrain Destroyed 54 | . . 28 . . . 26 . Melee . | . . . . . . . . Projectile 13 | . . . . . . 13 . AOE 41 | . . 28 . . . 13 . Terrain Rammed . | . . . . . . . . Walls Destroyed . | . . . . . . . . Machines Disabled . | . . . . . . . . Actions | -11 -10 -10 -9 -9 -8 -7 -6 --------- Run | Scr Mat Min Mat Sto Mat Fac Fac Total 3580 | . 163 267 455 849 307 965 574 Wait 480 | . 28 7 38 132 52 221 2 Move 2699 | . 124 241 327 603 224 634 546 Hop . | . . . . . . . . Pick Up 26 | . 3 . 8 5 1 7 2 Fast Attach 40 | . 1 1 12 7 4 7 8 Attach 16 | . . 1 4 3 . 4 4 Detach 5 | . . 1 1 . 1 2 . Swap 16 | . 1 . 2 7 2 4 . Drop 43 | . 3 1 8 13 3 14 1 Fire 231 | . 3 13 55 79 20 58 3 Melee 14 | . . . . . . 14 . Ram 10 | . . 2 . . . . 8 Kick . | . . . . . . . . Crush . | . . . . . . . . Escape Stasis . | . . . . . . . . Rewire . | . . . . . . . . Trap . | . . . . . . . . Miscellaneous . | . . . . . . . . Route ------- -11/Scrapyard -10/Materials -10/Mines -9/Materials -9/Storage -8/Materials -7/Factory -6/Factory History --------- Turn | Location | Event 1 | -11/Scrapyard | Discovered new exit (range 0) 1 | -11/Scrapyard | Entered Materials 176 | -10/Materials | Discovered new exit (range 14) 195 | -10/Materials | Entered Mines 196 | -10/Mines | Learned location of Storage (-9) 223 | -10/Mines | Learned location of Recycling (-9) 298 | -10/Mines | Assembled infested the area 303 | -10/Mines | Assisted by a Guerilla fighting off Assembled 315 | -10/Mines | Build established: Mutant 395 | -10/Mines | Core integrity fell below 50% 421 | -10/Mines | Lost 7 parts (1p2n4w) 455 | -10/Mines | Discovered new exit (range 6) 458 | -10/Mines | Entered Materials 458 | -9/Materials | Evolved 2 slots: Propulsion x2 562 | -9/Materials | Discovered new exit (range 9) 898 | -9/Materials | Build established: Scavenger-Mutant 1138 | -9/Materials | Entered Storage 2446 | -9/Storage | Discovered new exit (range 16) 2474 | -9/Storage | Entered Materials 2474 | -8/Materials | Evolved 2 slots: Utility x2 2927 | -8/Materials | Discovered new exit (range 4) 2930 | -8/Materials | Identified exit to Factory 2948 | -8/Materials | Entered Factory 2948 | -7/Factory | Evolved 2 slots: Utility x2 3874 | -7/Factory | Lost 4 parts (1p3n) 4148 | -7/Factory | Build established: Mutant 4427 | -7/Factory | Core integrity fell below 50% 4431 | -7/Factory | Discovered new exit (range 14) 4440 | -7/Factory | Identified exit to Factory 4453 | -7/Factory | Entered another Factory area 4453 | -6/Factory | Evolved 2 slots: Utility x2 4459 | -6/Factory | Lost 6 parts (1p2n2u1w) 4595 | -6/Factory | Lost 5 parts (3u2w) 4651 | -6/Factory | Core integrity fell below 50% 4696 | -6/Factory | Lost 7 parts (7u) 4710 | -6/Factory | Core integrity fell below 20% 4815 | -6/Factory | Destroyed by H-66 Slayer with Gauss Rifle Last Messages --------------- 04714_ S-27 Virus destroyed. 04714_ K-01 Serf destroyed. 04714_ Acquired Lgt. Ion Engine. 04714_ K-01 Serf pushes P-60 Hacker. 04715_ K-01 Serf collects debris. 04715_ K-01 Serf pushes P-60 Hacker. 04715_ Acquired 17 matter. 04717_ The unstable cave ceiling collapses. 04717_ Acquired Wheel. 04717_ Lgt. Ion Engine destroyed. 04718_ K-01 Serf collects debris. 04761_ Slammed into U-05 Engineer. 04778_ K-01 Serf cleans the Terminal. 04779_ K-01 Serf cleans the Pressure Siphon. 04799_ Slug penetrates Wall. 04799_ Slug penetrates U-05 Engineer. 04799_ Wheel destroyed. 04812_ Slug penetrates Door. 04812_ Slug penetrates Wall. 04815_ Penetrated by Slug. Map ----- +----------------------------------------------------+ | ?????????????????????????????????????????????????? | | ?????????????????????????????????????????????????? | | ?????????????????????????????????????????????????? | | ?????????????????????????????????????????????????? | | ?????????????????????????????????????????????????? | | ?????????????????????????????????????????????????? | | ?????????????????????????????????????????????????? | | ?????????????????????????????????????????????????? | | ?????????????????????????????????????????????????? | | ?????????????????????????????????????????????????? | | ?????????????????????????????????????????????????? | | ?????????????????????????????????????????????????? | | ?????????????????????????????????????????????????? | | ??????????????????????????????????+??????????????? | | ????????????????????????????????? #??????????????? | | ???????????????##############??? ???????????????? | | ???????????????# #?? ???????????????? | | ???????????????# # ????????????????? | | ???????????????# # ##?????????????? | | ???????????????# # ???????????? | | ???????????????# # ??????????? | | ???????????????# u ??????????? | | ???????????????# # ???????????? | | ???????????????# u # ????????????? | | ???????????????# # #????????????? | | ???????????????# @ # #????????????? | | ???????????????# h # #????????????? | | ???????????????# # #????????????? | | ???????????????#######;###### #????????????? | | ?????????????????????#w#????# #????????????? | | ?????????????????????# #????# #????????????? | | ????????????????????## ###### #????????????? | | ????????????????????# #????????????? | | ????????????????????# #????????????? | | ????????????????????# """ """ """ #????????????? | | ????????????????????# """ """ """ #????????????? | | ????????????????????# """ """ """ #????######??? | | ????????????????????# """ """ #??? """ #??? | | ??????????????????### #### """ #??? | | ??????????????????# """ """ """ + """ #??? | | ??????????????????# """ """ """ # #??? | | ??????????????????+ """ """ """ # #??? | | ??????????????????# """ """ """ #? #??? | | ??????????????????# #?#######?? | | ??????????????????# #? #?? | | ??????????????????# #? #?? | | ??????????????????# # #?? | | ??????????????????## ### # """ ??? | | ???????????????????#+########### + """""???? | | ????????????????????? ????# ##### """""???? | +----------------------------------------------------+ Best States ------------- Heat Dissipation 39 Energy Generation 12 Energy Capacity 265 Matter Stores 300 Matter Capacity 300 Sight Range 16 Robot Scan Range 16 Terrain Scan Density 10 Armor Coverage 600 Core Shielding 30 Reclamation Efficiency 15 Evasion (%) 50 Targeting Accuracy 16 Recoil Reduction 4 Offensive Hacking 10 Item Schematics ----------------- Hyp. Gauss Cannon | -7/Factory | Hacked Robot Schematics ------------------ None Fabricated ------------ Nothing Alien Tech Used ----------------- None Achievements -------------- None Challenges ------------ None Game ------ Seed FlightCorruptionDiverter Manual? 0 Play Time 00:51:49 Cumulative 97.5 hours Start 2021.10.20 @ 17:27:13 End 2021.10.20 @ 21:53:47 Sessions 3 Manual Loads 0 Difficulty Rogue Special Mode None Game No. 173 Rogue 173 Adventurer 0 Explorer 0 Win Type - Total 0 Types 0/0/0/0/0/0/0/0/0 Lore% 58 Gallery% 60 Achievement% 44 Wizard Run 0 Options --------- ASCII 0 Keyboard 1 Movement Numpad Keybinds 0 Fullscreen 2 Font 18/Terminus Map View 76x50 Tactical HUD 1 Map Filters NONE Filters NONE Steam 1 RUN: 60ed9baf-c52d-40d9-8b55-95def72db169